bitfinex-derivatives/quotes_ETHF0:USTF0_20251031
["timestamp","ask_amount","ask_price","bid_price","bid_amount"]
[1761944509808,0.172,3866.5,3865.9,4.13809234]
[1761944510109,0.172,3866.5,3866.4,3.67359]
[1761944511108,0.172,3866.5,3866.4,3.2078]
[1761944511515,0.4793,3866.5,3866.4,3.2078]
[1761944513610,0.172,3866.5,3866.4,3.67359]
[1761944513813,0.4793,3866.5,3866.4,3.67359]
[1761944514018,0.172,3866.5,3866.4,3.67359]
[1761944514322,0.172,3866.5,3866.4,3.2078]
[1761944514923,0.4793,3866.5,3866.4,3.2078]
[1761944515625,0.3073,3866.1,3866.0,3.2078]
[1761944520822,0.4793,3866.0,3865.9,0.00278129]
[1761944523528,0.4793,3866.0,3865.9,0.46863129]
[1761944523926,0.4793,3866.0,3865.9,0.00278129]
[1761944526730,0.4793,3866.0,3865.9,0.69954762]
[1761944527133,0.172,3866.0,3865.9,0.46863129]
[1761944528823,0.17457075,3867.0,3865.9,0.00278129]
[1761944529133,0.48187075,3867.0,3866.9,3.2078]
[1761944529327,0.56275677,3867.0,3866.9,3.2078]
[1761944529526,0.17457075,3867.0,3866.9,3.67353]
[1761944530327,0.17457075,3867.0,3866.9,4.60316953]
[1761944530533,0.17457075,3867.0,3866.9,3.2078]
[1761944530835,0.17457075,3867.0,3866.9,4.60340488]
[1761944532335,0.17457075,3867.0,3866.9,3.67353]
[1761944534853,0.51835514,3867.0,3866.9,0.69685875]
[1761944535033,0.51835514,3867.0,3866.7,0.92987488]
[1761944535034,0.2629,3866.9,3866.8,0.69685875]
[1761944537742,0.2629,3866.8,3866.5,0.92987488]
[1761944537943,0.2629,3866.8,3866.7,0.46575]
[1761944538741,0.4168,3866.5,3866.4,3.2078]
[1761944539142,0.49769792,3866.5,3866.4,3.2078]
[1761944539440,17.65469792,3866.5,3866.4,3.67359]
[1761944539646,17.65469792,3866.5,3865.9,0.00278129]
[1761944539647,0.4168,3866.0,3865.9,0.00278129]
[1761944539835,0.49769792,3866.0,3865.9,0.00278129]
[1761944543748,9.65969792,3866.0,3865.9,0.00278129]
[1761944544437,0.49769792,3866.0,3865.9,0.00278129]
[1761944544639,9.65469792,3866.0,3865.9,0.00278129]
[1761944545850,0.2522,3865.4,3865.3,0.69637406]
[1761944546047,0.2522,3865.3,3865.2,3.2078]
[1761944546947,0.2522,3865.3,3865.2,3.21114298]
[1761944550551,9.4102,3865.3,3865.2,3.21114298]
[1761944552747,0.1646,3865.5,3865.2,3.21114298]
[1761944553053,9.3236,3865.5,3865.3,0.46592]
[1761944553651,0.1646,3865.5,3865.4,0.46591]
[1761944553956,9.3236,3865.5,3865.3,0.46592]
[1761944554150,0.1646,3865.5,3865.3,0.46592]
[1761944554449,0.1646,3865.5,3865.4,0.46591]
[1761944562359,0.1646,3865.5,3865.4,1.16228406]
[1761944563255,0.1646,3865.5,3865.4,0.46591]
[1761944564261,0.1646,3865.5,3865.4,1.39578488]
[1761944564758,0.1646,3865.5,3865.4,0.46591]
[1761944565357,0.1646,3865.5,3865.4,0.92987488]
[1761944565559,0.1646,3865.5,3865.4,1.39578488]
[1761944565749,0.1646,3865.5,3865.4,0.92987488]
[1761944565953,0.1646,3865.5,3865.3,0.46592]
[1761944565954,0.2751,3865.4,3865.3,0.92987488]
[1761944566261,0.2751,3865.4,3865.3,1.39580488]
[1761944567466,0.2751,3865.4,3865.3,0.46593]
[1761944568365,0.2751,3865.4,3865.3,1.8603893]
[1761944568563,0.1646,3865.5,3865.4,0.46591]
[1761944569463,0.1646,3865.5,3865.4,1.8603693]
[1761944571866,0.4397,3865.5,3865.4,1.3944593]
[1761944572162,0.2751,3865.4,3865.3,1.3944593]
[1761944572566,0.2751,3865.3,3865.2,4.60560228]
[1761944575971,0.2751,3865.3,3865.2,4.14238119]
[1761944575972,0.35601964,3865.3,3865.2,4.14238119]
[1761944576275,0.35601964,3865.3,3865.2,3.21114298]
[1761944578274,0.35601964,3865.3,3865.2,3.90953416]
[1761944578477,9.51201964,3865.3,3865.2,3.90953416]
[1761944581073,9.51201964,3865.3,3865.2,0.70173416]
[1761944581277,9.51201964,3865.3,3865.2,0.00334298]
[1761944582177,0.2751,3865.1,3864.8,3.2078]
[1761944582473,0.2751,3864.8,3864.7,0.93123821]
[1761944582680,0.2751,3864.6,3864.5,0.93123821]
[1761944582879,9.4301,3864.6,3864.5,0.93123821]
[1761944583275,9.4301,3864.6,3864.5,0.00236125]
[1761944583676,9.51103515,3864.6,3864.5,0.00236125]
[1761944585181,9.4301,3864.6,3864.5,0.00236125]
[1761944587078,0.2751,3864.6,3864.5,0.00236125]
[1761944587284,9.4301,3864.6,3864.5,0.00236125]
[1761944592587,9.4301,3864.6,3863.9,4.13903821]
[1761944592588,0.4046,3864.0,3863.9,3.2078]
[1761944592887,9.5586,3864.0,3863.9,3.2078]
[1761944593582,9.56081636,3864.0,3863.9,3.21081455]
[1761944595485,9.56081636,3864.0,3863.9,0.00301455]
[1761944606878,0.40681636,3864.0,3863.9,0.00301455]
[1761944607090,5.09481636,3864.0,3863.9,0.00301455]
[1761944607389,5.17576698,3864.0,3863.9,1.455e-05]
[1761944610992,0.4877714,3864.0,3863.9,1.455e-05]
[1761944611389,4.51981636,3864.0,3863.9,3.67389455]
[1761944611889,0.15281636,3864.0,3863.9,3.67389455]
[1761944612092,0.15281636,3864.0,3863.9,4.60513276]
[1761944613397,0.15281636,3864.0,3863.9,4.60420079]
[1761944614390,0.15281636,3864.0,3863.9,3.67389455]
[1761944614695,0.15281636,3864.0,3863.9,4.60427555]
[1761944614897,0.15281636,3864.0,3863.9,4.13819555]
[1761944615999,0.15281636,3864.0,3863.9,4.60427555]
[1761944616200,0.15281636,3864.0,3863.9,3.67389455]
[1761944619298,0.15281636,3864.0,3863.9,5.06835385]
[1761944620902,0.15281636,3864.0,3863.9,4.60227385]
[1761944621896,0.15281636,3864.0,3863.9,5.06835385]
[1761944624204,0.15281636,3864.0,3863.9,3.67389455]
[1761944624599,0.15281636,3864.0,3863.9,5.06835385]
[1761944625204,0.15281636,3864.0,3863.9,3.67389455]
[1761944627208,0.15281636,3864.0,3863.9,5.06835385]
[1761944630506,0.15281636,3864.0,3863.9,5.06836385]
[1761944631604,0.15281636,3864.0,3863.9,4.60227385]
[1761944631802,0.38901636,3864.0,3863.9,4.60227385]
[1761944632608,0.38901636,3864.0,3863.9,4.13834904]
[1761944632809,0.46996356,3864.0,3863.9,3.20781455]
[1761944636312,3.44156356,3864.0,3863.2,1.3944593]
[1761944636614,0.3708,3863.0,3862.9,1.3944593]
[1761944637315,0.3708,3863.0,3862.9,0.00201675]
[1761944639117,0.1346,3863.0,3862.9,0.46822675]
[1761944640319,0.1346,3863.0,3862.9,0.00201675]
[1761944640817,0.1346,3863.0,3862.9,0.46822675]
[1761944642118,0.3708,3863.0,3862.9,0.00201675]
[1761944642920,0.1346,3863.0,3862.9,0.00201675]
[1761944643412,0.3708,3863.0,3862.9,0.00201675]
[1761944643819,0.3708,3863.0,3862.9,0.46822675]
[1761944644415,0.1346,3863.0,3862.9,0.46822675]
[1761944651924,0.1346,3863.5,3863.4,0.46615]
[1761944652627,0.1346,3863.5,3863.4,1.8606093]
[1761944653015,0.1346,3863.5,3863.4,0.46615]
[1761944653832,0.15281636,3864.0,3863.9,0.46608]
[1761944666437,0.42031636,3864.0,3863.9,0.92851278]
[1761944666638,0.2675,3863.9,3863.8,0.92851278]
[1761944666837,0.2675,3863.8,3863.7,3.2078]
[1761944668642,0.2675,3863.3,3863.2,3.2078]
[1761944679643,0.2675,3863.3,3863.0,0.46619]
[1761944680346,0.2675,3863.3,3862.9,0.93052953]
[1761944680555,0.2675,3863.3,3863.1,0.46618]
[1761944682851,0.148,3863.5,3863.2,0.46616]
[1761944683956,0.148,3863.5,3863.3,0.46615]
[1761944684857,0.148,3863.5,3863.4,0.46614]
[1761944685047,0.148,3863.5,3863.4,1.39465278]
[1761944686154,0.148,3863.5,3863.4,0.46614]
[1761944686759,0.148,3863.5,3863.4,1.39534785]
[1761944687556,0.148,3863.5,3863.4,0.46614]
[1761944690361,0.148,3863.5,3863.3,1.39371234]
[1761944690555,0.148,3863.5,3863.4,0.92962263]
[1761944690957,0.148,3863.5,3863.4,1.39576263]
[1761944692157,0.148,3863.5,3863.4,0.46614]
[1761944696861,0.2484,3863.4,3863.2,4.60151234]
[1761944697162,0.2484,3863.3,3863.2,5.06768234]
[1761944697662,0.148,3863.5,3863.4,0.46614]
[1761944700765,0.148,3863.5,3863.2,4.60151234]
[1761944701061,0.2484,3863.3,3863.2,4.60151234]
[1761944701254,0.2484,3863.3,3863.2,3.2078]
[1761944703668,0.148,3863.5,3863.2,3.67396]
[1761944703856,0.2484,3863.1,3863.0,1.39371234]
[1761944704164,0.388,3863.0,3862.9,0.00201675]
[1761944704560,0.2484,3862.6,3862.5,1.39371234]
[1761944704764,0.2484,3862.3,3862.2,1.39371234]
[1761944705156,0.1396,3862.5,3862.0,3.2078]
[1761944705157,0.2484,3862.2,3862.0,4.60151234]
[1761944705357,0.2484,3862.2,3862.0,3.2078]
[1761944705758,0.2484,3862.2,3862.0,3.21009256]
[1761944705958,0.2484,3862.2,3862.0,3.67640256]
[1761944707669,0.2484,3862.1,3862.0,3.21009256]
[1761944708467,0.2484,3862.1,3862.0,3.67640256]
[1761944708666,0.1396,3862.5,3862.0,3.67640256]
[1761944708965,0.1396,3862.5,3862.0,3.21009256]
[1761944710367,0.2484,3862.1,3862.0,3.21009256]
[1761944712367,0.1396,3862.5,3862.0,3.67640256]
[1761944712563,0.1396,3862.5,3862.0,3.21009256]
[1761944713071,0.1396,3862.5,3862.0,3.67640256]
[1761944713667,0.1396,3862.5,3862.0,3.21009256]
[1761944714167,0.1396,3862.5,3862.0,3.67640256]
[1761944715070,0.1396,3862.5,3862.0,3.21009256]
[1761944715770,0.1396,3862.5,3862.0,3.67640256]
[1761944715959,0.1396,3862.5,3862.0,3.21009256]
[1761944716470,0.1396,3862.5,3862.0,3.67640256]
[1761944716773,0.1396,3862.5,3862.0,3.21009256]
[1761944717160,0.1396,3862.5,3862.0,3.67639256]
[1761944719071,0.1396,3862.5,3862.0,3.21009256]
[1761944719262,0.217,3862.1,3862.0,3.21009256]
[1761944719659,0.217,3862.1,3861.4,0.26680662]
[1761944719660,0.217,3861.6,3861.4,0.26680662]
[1761944719862,0.217,3861.6,3859.7,0.02590909]
[1761944719863,0.217,3860.1,3860.0,1.8567302]
[1761944720064,0.217,3859.8,3859.7,0.02590909]
[1761944720669,0.21931727,3859.8,3859.7,0.02862572]
[1761944722474,0.00231727,3859.8,3859.7,0.25062572]
[1761944722862,0.33441727,3859.8,3859.7,0.02862572]
[1761944724171,0.539,3859.5,3859.4,0.50121167]
[1761944724374,3.7468,3859.5,3859.4,0.50121167]
[1761944725171,3.7468,3859.5,3858.3,0.46675]
[1761944725367,3.2078,3858.9,3858.0,7.9221]
[1761944725678,3.2078,3858.9,3858.0,4.7143]
[1761944725973,3.2078,3858.9,3858.0,0.59709]
[1761944726268,3.2078,3858.9,3858.5,0.13347694]
[1761944726674,3.2078,3858.9,3858.8,0.3379]
[1761944729766,3.5399,3858.9,3858.8,0.3379]
[1761944732783,3.2078,3859.3,3859.2,0.3379]
[1761944732972,3.2078,3859.3,3859.0,0.2037]
[1761944732973,3.5399,3859.3,3859.0,0.2037]
[1761944733277,3.5399,3859.3,3858.6,0.46672]
[1761944733582,3.5399,3859.3,3858.7,0.46671]
[1761944734075,3.5399,3859.3,3858.5,0.13347694]
[1761944734275,3.5399,3859.3,3858.5,0.60020694]
[1761944734476,3.5399,3859.3,3858.5,0.13347694]
[1761944734873,3.5399,3859.3,3858.7,0.46671]
[1761944735180,3.5399,3859.3,3858.5,0.13347694]
[1761944735886,3.5399,3859.3,3858.6,0.46671]
[1761944736186,3.5399,3859.3,3858.7,0.46671]
[1761944736483,3.5399,3859.3,3858.6,0.46672]
[1761944736675,3.5399,3859.3,3858.5,0.13347694]
[1761944736874,3.5399,3859.3,3858.6,0.46672]
[1761944737081,3.5399,3859.3,3858.7,0.46671]
[1761944738278,3.5399,3859.3,3858.6,0.46672]
[1761944740187,3.5399,3859.3,3858.5,0.13347694]
[1761944740380,3.5399,3859.3,3858.7,0.4667]
[1761944741568,3.5399,3859.3,3858.5,0.60020694]
[1761944741774,0.3321,3858.8,3858.7,0.46671]
[1761944742184,0.3321,3858.8,3858.7,0.80801]
[1761944743781,3.2078,3859.3,3858.7,0.80801]
[1761944744083,0.08104939,3859.2,3858.7,0.80801]
[1761944744283,0.08104939,3859.1,3858.7,0.80801]
[1761944744477,0.08104939,3859.0,3858.7,0.80801]
[1761944744675,3.2078,3859.3,3858.7,0.80801]
[1761944744877,0.69516801,3859.2,3858.7,0.80801]
[1761944745078,0.08104939,3859.1,3858.7,0.80801]
[1761944745272,3.2078,3859.3,3857.5,0.5327]
[1761944745273,0.1019,3858.0,3857.5,0.5327]
[1761944745473,0.08107032,3857.9,3857.8,0.3413]
[1761944746374,0.69601639,3857.9,3857.8,0.34461021]
[1761944749284,1.01321639,3857.9,3857.8,0.34461021]
[1761944749591,1.01321639,3857.9,3857.8,0.00331021]
[1761944751481,1.01321639,3857.9,3857.8,0.34461021]
[1761944751482,0.69601639,3857.9,3857.8,0.34461021]
[1761944751675,0.69601639,3857.9,3857.8,0.81143021]
[1761944751879,0.69905818,3857.9,3857.8,0.81143021]
[1761944756194,0.08107032,3857.9,3857.8,0.81143021]
[1761944757189,0.08107032,3857.9,3857.8,0.34461021]
[1761944757396,0.69888626,3857.9,3857.8,0.81143021]
[1761944759098,0.08107032,3857.9,3857.8,0.81143021]
[1761944759999,3.525,3858.4,3858.3,0.80806]
[1761944760291,0.3172,3858.3,3858.0,0.65818]
[1761944760494,0.69885823,3858.2,3858.1,0.46678]
[1761944760798,0.69885823,3858.2,3858.1,0.80808]
[1761944762505,3.2078,3858.9,3858.6,0.46671]
[1761944762701,0.69874841,3858.8,3858.6,0.46671]
[1761944762902,0.69874841,3858.7,3858.6,0.80801]
[1761944764499,0.3172,3859.2,3859.1,0.46666]
[1761944764795,1.01497882,3859.2,3858.5,0.1914]
[1761944764990,0.69777882,3859.1,3858.9,0.46668]
[1761944765194,0.69777882,3859.0,3858.9,0.46668]
[1761944765500,0.69777882,3859.0,3858.9,0.80798]
[1761944766113,0.69777882,3859.0,3858.9,0.3413]
[1761944766508,0.69777882,3859.0,3858.9,0.80798]
[1761944768906,0.69777882,3859.0,3858.9,0.3413]
[1761944769106,1.01497882,3859.0,3858.9,0.3413]
[1761944769310,0.93393308,3859.0,3858.9,0.3413]
[1761944769711,0.93393308,3859.0,3858.9,0.80798]
[1761944770215,0.93393308,3859.0,3858.5,0.1914]
[1761944770403,3.82453308,3858.9,3858.5,0.1914]
[1761944770604,3.82453308,3858.9,3857.8,0.00331021]
[1761944770605,0.2986,3858.1,3857.8,0.00331021]
[1761944770807,3.2078,3858.4,3858.0,0.92969]
[1761944771311,3.2078,3858.4,3858.0,0.4629]
[1761944771511,3.2078,3858.4,3858.1,0.46678]
[1761944771715,0.4793,3858.5,3858.4,0.46675]
[1761944771906,0.4793,3858.5,3858.2,0.46676]
[1761944771907,0.2986,3858.5,3858.2,0.46676]
[1761944772215,0.2986,3858.5,3858.1,0.46677]
[1761944772712,0.2986,3858.5,3858.2,0.46677]
[1761944773312,0.2986,3858.5,3858.3,0.46675]
[1761944774309,0.2986,3858.5,3858.0,0.18]
[1761944774310,0.2986,3858.5,3858.4,0.74964]
[1761944777218,0.2986,3858.5,3858.4,0.2829]
[1761944778017,3.2078,3858.8,3858.5,0.18]
[1761944778317,3.2078,3858.8,3858.5,0.64673]
[1761944779017,3.2078,3858.8,3858.6,0.46672]
[1761944780016,3.4907,3858.8,3858.6,0.46671]
[1761944781522,3.4907,3858.8,3858.5,0.64672]
[1761944782027,3.4907,3858.8,3858.5,0.18]
[1761944782230,3.4907,3858.8,3858.6,0.46672]
[1761944782919,0.2829,3858.6,3858.5,0.18]
[1761944783120,0.2829,3858.6,3858.5,0.93403]
[1761944784022,0.2829,3858.6,3858.5,0.4673]
[1761944784424,3.4907,3858.8,3858.7,0.46671]
[1761944784726,4.10736018,3858.8,3858.7,0.75401]
[1761944785122,4.10736018,3858.8,3858.7,0.2873]
[1761944785715,4.10736018,3858.8,3858.7,0.75401]
[1761944785920,3.82446018,3858.8,3858.7,0.75401]
[1761944786123,3.2078,3858.8,3858.7,0.75401]
[1761944786722,0.2829,3859.2,3859.1,0.46665]
[1761944787521,0.2829,3859.2,3859.1,0.2873]
[1761944787827,0.2829,3859.2,3859.1,0.75396]
[1761944788123,0.2069,3859.5,3859.1,0.75396]
[1761944788325,0.2829,3859.2,3859.1,0.2873]
[1761944788929,0.2829,3859.2,3859.1,0.75396]
[1761944789114,0.2829,3859.2,3859.1,0.2873]
[1761944790132,0.0571,3859.0,3858.5,0.18]
[1761944790826,0.2829,3858.5,3858.4,3.2078]
[1761944791021,0.2829,3858.5,3858.4,3.4951]
[1761944791230,0.2829,3858.5,3858.4,0.2873]
[1761944791530,0.4577,3858.5,3858.0,0.18]
[1761944791730,0.4577,3858.5,3858.0,0.64679]
[1761944791939,0.4577,3858.5,3858.0,0.18]
[1761944792126,0.2829,3858.4,3858.3,0.46675]
[1761944792531,0.2829,3858.4,3858.2,0.46677]
[1761944792830,3.2078,3858.8,3858.5,0.46672]
[1761944793034,3.2078,3858.8,3858.3,0.2873]
[1761944793035,0.0571,3859.0,3858.3,0.46675]
[1761944793335,0.61665176,3858.9,3858.4,0.46674]
[1761944793633,0.61665176,3858.8,3858.5,0.63463]
[1761944793835,0.0571,3859.0,3858.5,0.63463]
[1761944794134,0.61667871,3858.9,3858.8,0.2873]
[1761944794534,3.2078,3859.2,3858.8,0.2873]
[1761944794725,0.61669801,3859.1,3858.8,0.2873]
[1761944794926,0.2829,3858.9,3858.8,0.2873]
[1761944795433,0.2829,3858.9,3858.2,4.3747]
[1761944795434,0.2829,3858.6,3858.2,3.2078]
[1761944796033,0.2829,3858.6,3858.3,0.46675]
[1761944796631,0.2829,3858.6,3858.2,3.2078]
[1761944796831,0.2829,3858.6,3858.3,0.46676]
[1761944797433,0.2829,3858.6,3858.3,0.46675]
[1761944797632,0.2829,3858.6,3858.5,0.2873]
[1761944797832,0.063,3859.0,3858.5,0.4552]
[1761944798034,0.61694707,3858.9,3858.5,0.4552]
[1761944798235,0.61694707,3858.8,3858.5,0.4552]
[1761944798436,0.063,3859.0,3858.5,0.4552]
[1761944798734,0.61699224,3858.9,3858.5,0.92192]
[1761944798935,0.61699224,3858.8,3858.5,0.4552]
[1761944799134,0.063,3859.0,3858.5,0.4552]
[1761944799334,0.61698039,3858.9,3858.5,0.4552]
[1761944799535,0.61698039,3858.8,3858.5,0.4552]
[1761944799834,0.063,3859.0,3858.5,0.4552]
[1761944800035,0.61697993,3858.9,3858.5,0.4552]
[1761944800234,0.61697993,3858.8,3858.5,0.4552]
[1761944800533,0.063,3859.0,3858.5,0.4552]
[1761944800733,0.6172172,3858.9,3858.5,0.4552]
[1761944801036,0.6172172,3858.8,3858.5,0.4552]
[1761944801238,0.063,3859.0,3858.5,0.92193]
[1761944801435,0.61738251,3858.9,3858.5,0.92193]
[1761944801628,0.063,3859.0,3858.5,0.92193]
[1761944801629,0.61738251,3858.8,3858.5,0.92193]
[1761944801830,0.063,3859.0,3858.5,0.92193]
[1761944802031,0.61755963,3858.9,3858.5,0.92193]
[1761944802231,0.063,3859.0,3858.5,0.92193]
[1761944802232,0.61755963,3858.8,3858.5,0.92193]
[1761944802433,0.063,3859.0,3858.5,0.92193]
[1761944802643,0.61765772,3858.9,3858.5,0.92193]
[1761944802939,0.61765772,3858.8,3858.7,0.2873]
[1761944803141,3.2078,3859.2,3858.8,0.2822]
[1761944803336,0.6987366,3859.1,3858.8,0.2822]
[1761944803536,0.61768999,3859.0,3858.8,0.2822]
[1761944803840,0.61768999,3858.9,3858.8,0.2822]
[1761944804043,0.89638999,3858.9,3858.8,0.2822]
[1761944804944,0.2787,3858.9,3858.8,0.2822]
[1761944805238,3.2078,3859.2,3858.9,0.46668]
[1761944805448,0.698784,3859.1,3858.8,0.4667]
[1761944805743,0.61773738,3859.0,3858.5,0.1679]
[1761944805941,0.61773738,3858.9,3858.5,0.1679]
[1761944806146,3.2078,3859.2,3858.5,0.1679]
[1761944806336,0.2787,3858.9,3858.8,0.46669]
[1761944806737,0.89654777,3858.9,3858.8,0.46669]
[1761944806948,0.2787,3858.9,3858.8,0.46669]
[1761944807448,0.2787,3858.9,3858.7,0.46671]
[1761944807643,0.2787,3858.9,3858.8,0.2822]
[1761944807842,0.2787,3858.9,3858.8,0.7489]
[1761944809341,0.89672117,3858.9,3858.8,0.7489]
[1761944809544,0.2787,3858.9,3858.8,0.7489]
[1761944810446,0.61815141,3858.9,3858.8,0.7489]
[1761944810640,0.61815141,3859.1,3858.8,0.7489]
[1761944810840,0.61815141,3859.0,3858.8,0.7489]
[1761944811037,0.61815141,3858.9,3858.8,0.7489]
[1761944811737,0.61815141,3859.1,3858.8,0.7489]
[1761944811939,0.61815141,3859.0,3858.8,0.7489]
[1761944812144,3.2078,3859.2,3859.1,0.2822]
[1761944812345,3.82599379,3859.2,3859.1,0.2822]
[1761944812545,4.10469379,3859.2,3859.1,0.2822]
[1761944813243,0.61819379,3859.2,3859.1,0.74886]
[1761944813440,0.2069,3859.5,3859.1,0.2822]
[1761944813634,0.61852519,3859.4,3859.1,0.74885]
[1761944814437,0.61852519,3859.4,3859.1,0.2822]
[1761944815051,0.61852519,3859.4,3859.3,0.2822]
[1761944815346,0.89722519,3859.4,3859.3,0.2822]
[1761944817049,0.89606298,3859.4,3859.3,0.2822]
[1761944818648,0.89606298,3859.4,3859.3,0.74884]
[1761944819455,0.61736298,3859.4,3859.3,0.74884]
[1761944820543,0.89606298,3859.4,3859.3,0.2822]
[1761944822855,0.89606298,3859.4,3859.1,0.46665]
[1761944823053,0.61736298,3859.3,3859.1,0.46665]
[1761944823354,3.2078,3859.6,3859.1,0.46665]
[1761944823542,0.61760533,3859.5,3859.1,0.46665]
[1761944823744,0.61760533,3859.4,3859.1,0.46665]
[1761944823949,0.61760533,3859.3,3859.1,0.46665]
[1761944824150,0.0428,3859.5,3859.1,0.46665]
[1761944824356,0.61757889,3859.4,3859.1,0.46665]
[1761944824554,0.61757889,3859.3,3859.2,0.46665]
[1761944825156,0.0428,3859.5,3859.2,0.46665]
[1761944825357,0.6176304,3859.4,3859.2,0.46665]
[1761944825553,0.0428,3859.5,3859.2,0.46665]
[1761944825755,0.61766351,3859.4,3859.2,0.46665]
[1761944826060,0.0428,3859.5,3859.2,0.46665]
[1761944826350,0.2787,3859.3,3859.2,0.46665]
[1761944826548,0.2787,3859.3,3859.2,0.2514]
[1761944827051,0.2787,3859.3,3858.5,1.33472]
[1761944827052,0.2378,3858.8,3858.0,3.3878]
[1761944827250,0.2378,3858.8,3858.7,0.2514]
[1761944827451,3.2078,3858.9,3858.8,0.2514]
[1761944827755,3.4456,3858.9,3858.8,0.2514]
[1761944830663,3.4456,3858.9,3858.5,0.62263]
[1761944833563,3.4456,3858.9,3858.6,0.46672]
[1761944833963,3.4456,3858.9,3858.5,0.62263]
[1761944837864,3.4456,3858.9,3858.6,0.46672]
[1761944838064,3.4456,3858.9,3858.5,0.1559]
[1761944838065,3.4456,3858.9,3858.5,0.62263]
[1761944841273,0.2522,3858.7,3858.6,0.46672]
[1761944841867,0.2522,3858.7,3858.5,0.62263]
[1761944842167,0.2522,3858.7,3858.6,0.46672]
[1761944843569,0.2522,3858.7,3858.6,0.71532]
[1761944843869,0.2522,3858.7,3858.6,0.2486]
[1761944844268,0.2522,3858.6,3858.5,0.62263]
[1761944844675,0.2522,3858.6,3858.5,0.87123]
[1761944847266,0.223,3858.1,3858.0,3.3878]
[1761944847470,0.223,3857.9,3857.8,0.00331021]
[1761944848368,0.223,3857.9,3857.8,0.47013021]
[1761944850064,0.223,3858.1,3858.0,0.46679]
[1761944850366,0.223,3858.1,3857.8,0.47013021]
[1761944851061,0.223,3858.1,3857.9,0.4668]
[1761944852661,0.223,3858.1,3858.0,0.68709]
[1761944852861,0.223,3858.1,3858.0,0.82659]
[1761944858376,3.2078,3858.4,3858.0,0.82659]
[1761944858581,3.2078,3858.4,3858.3,0.68706]
[1761944858779,3.4308,3858.4,3858.3,0.68706]
[1761944859689,0.223,3857.9,3857.8,0.00331021]
[1761944864780,0.223,3857.9,3857.8,0.47013021]
[1761944865885,0.223,3857.9,3857.8,0.69773021]
[1761944867772,0.223,3857.9,3857.8,0.23091021]
[1761944868483,0.223,3857.9,3857.8,0.00331021]
[1761944868776,0.223,3857.9,3857.8,0.47013021]
[1761944871278,0.223,3857.9,3857.8,0.00331021]
[1761944872878,0.223,3857.9,3857.8,0.47013021]
[1761944873586,0.223,3857.9,3857.8,0.00331021]
[1761944874575,0.223,3857.9,3857.8,0.47013021]
[1761944874777,0.223,3857.9,3857.8,0.00331021]
[1761944876283,0.223,3857.9,3857.8,0.47013021]
[1761944876486,0.223,3857.9,3857.8,0.00331021]
[1761944883483,0.2326,3856.8,3856.7,1.84220828]
[1761944883793,0.2326,3856.8,3856.1,3.2078]
[1761944884193,0.2326,3856.8,3856.1,3.67482]
[1761944884393,0.61287879,3856.7,3856.1,3.21086273]
[1761944884583,0.00301544,3856.8,3856.1,3.21086273]
[1761944884784,0.61285885,3856.7,3856.1,0.00306273]
[1761944885083,0.2326,3856.2,3856.1,0.00306273]
[1761944886395,0.2326,3856.2,3856.1,0.47008273]
[1761944886690,0.2326,3856.2,3856.1,0.00306273]
[1761944887390,0.2326,3855.8,3855.2,3.2078]
[1761944887595,0.2326,3855.8,3855.3,0.46712]
[1761944887786,0.2326,3855.8,3855.2,3.2078]
[1761944887986,0.2326,3855.8,3855.2,3.67493]
[1761944888491,0.2326,3855.8,3855.2,3.67727166]
[1761944889193,0.2326,3855.8,3855.2,3.21014166]
[1761944889595,0.2326,3855.8,3855.2,3.67726166]
[1761944890191,0.2326,3855.8,3855.3,0.46712]
[1761944890897,0.2326,3855.8,3855.2,3.21014166]
[1761944892390,0.2326,3855.8,3855.2,3.67727166]
[1761944893501,0.2326,3855.8,3855.3,0.46712]
[1761944894699,0.2326,3855.8,3855.2,3.21014166]
[1761944895296,0.2326,3855.8,3855.2,3.67727166]
[1761944896701,0.2326,3855.8,3855.2,3.21014166]
[1761944898204,0.2326,3855.3,3855.2,3.21014166]
[1761944898894,0.2326,3855.3,3855.2,3.90107166]
[1761944899498,0.2326,3855.3,3855.2,3.43394166]
[1761944900103,0.2326,3855.3,3855.2,3.90107166]
[1761944902211,0.2326,3855.3,3855.2,3.43394166]
[1761944902613,0.1334,3855.5,3854.7,0.02594269]
[1761944902614,0.2328,3854.8,3854.7,0.02594269]
[1761944902909,0.2328,3854.1,3853.6,3.67512]
[1761944903098,0.2328,3854.1,3853.7,0.46731]
[1761944903500,0.2328,3854.1,3853.6,3.2078]
[1761944903705,0.23608233,3854.1,3853.6,3.67799941]
[1761944904210,0.23608233,3854.1,3853.6,3.21066941]
[1761944904405,0.1023,3854.0,3853.6,3.21066941]
[1761944905202,0.1023,3854.0,3853.6,3.67799941]
[1761944905800,0.00328233,3854.1,3853.6,3.67799941]
[1761944906405,0.00328233,3854.1,3853.6,0.22316941]
[1761944908300,0.1004,3854.0,3853.6,0.22316941]
[1761944908497,0.2328,3853.7,3853.6,0.00286941]
[1761944909103,0.2328,3853.7,3853.6,0.22316941]
[1761944909303,0.2328,3853.7,3853.6,0.00286941]
[1761944909600,0.2328,3853.7,3852.8,0.20154417]
[1761944909601,0.2328,3852.9,3852.8,0.20154417]
[1761944909904,3.4406,3852.9,3851.5,0.6483269]
[1761944910098,3.2078,3852.1,3851.5,0.6483269]
[1761944910494,0.0994,3852.0,3851.5,0.65126961]
[1761944911305,3.2078,3852.1,3851.6,0.2203]
[1761944911605,0.137,3852.5,3851.5,0.51436961]
[1761944911606,0.2328,3851.6,3851.5,0.51436961]
[1761944912205,3.2078,3851.7,3851.6,0.2203]
[1761944912504,3.4406,3851.7,3851.5,0.51436961]
[1761944912704,0.2328,3851.6,3851.5,0.51436961]
[1761944912897,0.2328,3851.6,3851.5,0.73466961]
[1761944913103,3.2078,3851.7,3851.6,0.2203]
[1761944913609,0.2328,3851.6,3851.5,0.51436961]
[1761944916907,0.1342,3851.0,3850.2,0.2203]